Cogmind - Beta 12 @@@ ROGUE MODE // 2024.02.04 @ 17:33:16 Player: SURFACESEEKER Result: Destroyed by as-69875 with Assembled Blade Performance ------------- Evolutions (1) 500 Regions Visited (3) 600 Robots Destroyed (49) 245 Value Destroyed (1109) 1109 Prototype IDs (4) 80 Alien Tech Used (0) 0 Bonus (0) 0 TOTAL SCORE: 2534 Bonus ------- None Cogmind --------- Core Integrity 0/400 Matter 167/300 Energy 280/280 System Corruption 2% Temperature Cool (56) Movement Core (550) Ox10 Location -9/Mines Parts ------- > --- POWER (1) -------- Heavy Ion Engine > --- PROPULSION (3) --- (None) > --- UTILITY (3) ------ Large Storage Unit Terrain Scan Processor > --- WEAPON (2) ------- Advanced Beam Cannon > --- INVENTORY (15) --- Ion Engine Light Ion Engine Improved Ion Engine Heavy Ion Engine Aluminum Leg Large Storage Unit Advanced Beam Cannon Light Assault Rifle Heavy Assault Rifle Peak State ------------ > --- POWER ------------ Heavy Ion Engine > --- PROPULSION ------- Light Treads Light Treads Light Treads > --- UTILITY ---------- Large Storage Unit Improved Terrain Scanner Terrain Scan Processor > --- WEAPON ----------- Improved Light Cannon Mini Grenade Launcher > --- INVENTORY -------- Ion Engine Light Ion Engine Improved Ion Engine Heavy Ion Engine Aluminum Leg Large Storage Unit Advanced Beam Cannon Advanced Beam Cannon Light Assault Rifle Heavy Assault Rifle [Rating: 17] Favorites ----------- Power Heavy Ion Engine Engine Heavy Ion Engine Propulsion Aluminum Leg Treads Light Treads Leg Aluminum Leg Wheel Wheel Utility Large Storage Unit Device Improved Terrain Scanner Storage Large Storage Unit Processor Terrain Scan Processor Protection Hardened Light Armor Plating Weapon Light Assault Rifle Energy Gun Small Laser Energy Cannon Advanced Beam Cannon Ballistic Gun Light Assault Rifle Ballistic Cannon Improved Light Cannon Launcher Mini Grenade Launcher Special Weapon Mining Laser Build | -11 -10 -9 -9 ------- Run | Jun Mat Mat Min Slots Evolved 2 | . . 2 . Power . | . . . . Propulsion 1 | . . 1 . Utility 1 | . . 1 . Weapon . | . . . . Parts Attached 53 | 12 6 30 5 Power 5 | 1 . 3 1 Engine 5 | 1 . 3 1 Core . | . . . . Reactor . | . . . . Propulsion 14 | 2 1 11 . Treads 3 | . . 3 . Leg 7 | . . 7 . Wheel 4 | 2 1 1 . Hover . | . . . . Flight . | . . . . Utility 9 | 2 2 5 . Device 5 | 1 1 3 . Storage 2 | 1 1 . . Processor 1 | . . 1 . Hackware . | . . . . Protection 1 | . . 1 . Artifact . | . . . . Weapon 25 | 7 3 11 4 Energy Gun 2 | 1 . 1 . Energy Cannon 2 | . . 1 1 Ballistic Gun 9 | 4 1 4 . Ballistic Cannon 2 | . . 1 1 Launcher 4 | . . 2 2 Special Weapon 6 | 2 2 2 . Impact Weapon . | . . . . Slashing Weapon . | . . . . Piercing Weapon . | . . . . Special Melee Weapon . | . . . . Unidentified Prototypes 2 | . . 2 . Parts Lost 25 | . 2 17 6 Power 1 | . . 1 . Propulsion 12 | . 1 8 3 Utility 5 | . 1 3 1 Weapon 7 | . . 5 2 Highest Loss Streak 8 | . 1 8 5 To Critical Strikes . | . . . . Average Slot Usage (%) 94 | . 95 93 94 Engine 10 | . 14 10 11 Treads 6 | . . 3 31 Leg 17 | . . 23 . Wheel 6 | . 28 2 . Device 15 | . 9 18 8 Storage 11 | . 14 11 11 Processor 1 | . . . 11 Protection 1 | . . 1 . Energy Gun 5 | . . 6 . Energy Cannon 4 | . . 6 . Ballistic Gun 8 | . 20 6 8 Ballistic Cannon 1 | . . . 6 Special Weapon 1 | . 7 . . Naked Turns . | . . . . Heaviest Build 35 | 12 27 35 34 Greatest Support 60 | 20 20 60 60 Greatest Overweight (x) 2 | . 1 2 1 Average Overweight (x) . | . . . . Largest Inventory Capacity 15 | 8 15 15 15 Average Capacity 13 | 7 14 15 15 Most Carried 13 | 8 9 13 10 Average Carried 8 | 4 8 9 9 Final Capacity 15 | 8 15 15 15 Final Carried 10 | 8 8 10 9 Class Distribution -------------------- 67% | Scavenger-Mutant 32% | Mutant Dominant Class ---------------- Mutant | -10/Materials Scavenger-Mutant | -9/Materials Scavenger-Mutant | -9/Mines Resources | -11 -10 -9 -9 ----------- Run | Jun Mat Mat Min Matter Collected 1157 | 395 85 588 89 Remotely . | . . . . Salvage Created 1320 | 197 183 877 63 Parts 115 | 17 12 74 12 Haulers Intercepted 1 | . . 1 . Recyclers Shooed 5 | . . 2 3 Parts Field Recycled . | . . . . Retrieved Matter . | . . . . Parts Self-Destructed . | . . . . Prevented . | . . . . Kills | -11 -10 -9 -9 ------- Run | Jun Mat Mat Min Combat Hostiles Destroyed 32 | . 4 20 8 Guns 16 | . 4 12 . Cannons 3 | . . 1 2 AOE 13 | . . 7 6 Classes Destroyed 14 | 3 1 8 2 Worker 3 | 1 . 1 1 Builder 4 | . . 2 2 Tunneler 7 | 7 . . . Hauler 1 | . . 1 . Recycler 2 | 1 . 1 . Mechanic 1 | . . 1 . Operator 1 | . . 1 . Watcher 1 | . . 1 . Swarmer 8 | . . 4 4 Grunt 15 | . 4 11 . Brawler 1 | . . 1 . Sentry 4 | . . 4 . Demolisher 1 | . . . 1 Assembled 3 | . . . 3 Best Kill Streak 7 | 2 2 7 4 Combat Bots Only 6 | . 2 6 4 Max Kills in Single Turn 4 | 1 1 2 4 Gunslinging . | . . . . Exploded 4 | . . 2 4 Melee . | . . . . Uniques/NPCs Destroyed . | . . . . Combat | -11 -10 -9 -9 -------- Run | Jun Mat Mat Min Damage Taken 2619 | . 143 1671 805 Core 428 | . 27 273 128 Absorbed by Shields . | . . . . Core Remaining (%) 94 | 100 89 . . Volleys Fired 175 | 39 22 89 25 Largest 2 | 2 2 2 2 Hottest 200 | 200 120 200 68 Shots Fired 311 | 72 41 160 38 Gun 246 | 62 37 134 13 Cannon 31 | . . 17 14 Launcher 16 | . . 5 11 Special 18 | 10 4 4 . Kinetic 235 | 53 37 120 25 Thermal 60 | 19 4 35 2 Explosive 16 | . . 5 11 Electromagnetic . | . . . . Robot Hit Streak 18 | 6 9 18 5 Robot Miss Streak 4 | 2 3 4 3 Penetration Max . | . . . . Secondary Targets 3 | . . 3 . Max Gunslinging Chain 1 | . . 1 . Shots Hit Robots 201 | 42 29 112 18 Core Hits 95 | 16 12 46 21 Critical Kills . | . . . . Critical Parts Destroyed . | . . . . Critical Strikes 2 | 2 . . . Burn 2 | 2 . . . Melee Attacks . | . . . . Impact . | . . . . Slashing . | . . . . Piercing . | . . . . Sneak Attacks . | . . . . Combat Hostiles . | . . . . Follow-up Attacks . | . . . . Damage Inflicted 3232 | 461 285 1727 759 Guns 1869 | 437 285 1099 48 Cannons 368 | . . 185 183 Explosions 915 | . . 387 528 Melee . | . . . . Ramming 8 | . . 8 . Kinetic 1844 | 361 285 988 210 Thermal 638 | 100 . 517 21 Explosive 742 | . . 214 528 Electromagnetic . | . . . . Impact . | . . . . Slashing . | . . . . Piercing . | . . . . Highest Corruption 2 | . . 2 2 Average Corruption 2 | . . 2 2 Corruption Purged . | . . . . Corruption Blocked . | . . . . Effects 22 | . . 19 3 Message Errors 4 | . . 4 . Matter Fused 4 | . . 3 1 Heat Flow Errors 4 | . . 4 . Energy Discharges 3 | . . 2 1 Data Loss (minor) 3 | . . 3 . Misfires 2 | . . 1 1 Alerts 1 | . . 1 . Weapon Failures 1 | . . 1 . Overload Shots . | . . . . Overflow Damage 39 | . . . 39 Projectiles 1 | . . . 1 Explosions 38 | . . . 38 Melee . | . . . . Knockbacks 3 | . . . 3 Impact . | . . . . Kinetic 2 | . . . 2 Secondary 1 | . . . 1 Self-Inflicted Damage 172 | . . 69 103 Shots 6 | . . 2 4 Rammed . | . . . . Targets Rammed 3 | . . 3 . Kicked 3 | . . 3 . Crushed . | . . . . Highest Temperature 306 | 150 60 306 56 Average Temperature 54 | 45 21 73 12 Received Heat Transfer 738 | . 81 597 60 Siege Activations . | . . . . Robots Corrupted . | . . . . Combat Hostiles . | . . . . Parts Fried . | . . . . Impact Corruptions . | . . . . Robots Melted . | . . . . Combat Hostiles . | . . . . Parts Melted 6 | 3 . 3 . Heat Transferred 1266 | 420 . 809 37 Parts Sabotaged . | . . . . Parts Stolen . | . . . . Parts Stripped . | . . . . Power Chain Reactions . | . . . . Missiles Intercepted . | . . . . Alert | -11 -10 -9 -9 ------- Run | Jun Mat Mat Min Peak Influence 385 | 45 141 385 315 Initial 93 | . 29 59 93 Average 150 | 25 77 175 264 Maximum Alert Level 1 | . . 1 1 Low Security (%) 70 | 100 100 69 . Level 1 29 | . . 30 99 Level 2 . | . . . . Level 3 . | . . . . Level 4 . | . . . . Level 5 . | . . . . High Security . | . . . . Max Security . | . . . . Squads Dispatched 3 | . 1 2 . Investigation 1 | . . 1 . Extermination . | . . . . Reinforcement 2 | . 1 1 . Assault . | . . . . Garrison . | . . . . Intercept . | . . . . Searches Triggered . | . . . . Construction Impeded . | . . . . Haulers Reinforced . | . . . . Active Scanning Responses . | . . . . Cargo Convoy Interrupts . | . . . . Stealth | -11 -10 -9 -9 --------- Run | Jun Mat Mat Min Distress Signals 3 | . . 3 . Communications Jammed . | . . . . Distress Signals . | . . . . Times Spotted 57 | . 6 34 17 Peak Tracking Total 6 | . 3 6 6 Tactical Retreats 3 | . . . 3 Traps | -11 -10 -9 -9 ------- Run | Jun Mat Mat Min Traps Triggered 1 | . . 1 . Indirectly . | . . . . Trap Hack Attempts . | . . . . Triggered . | . . . . Disarmed . | . . . . Reprogrammed . | . . . . Reused . | . . . . Traps Extracted . | . . . . Installed . | . . . . Triggered . | . . . . Machines | -11 -10 -9 -9 ---------- Run | Jun Mat Mat Min Machines Disabled 8 | . . 5 3 Max in Single Turn 4 | . . 4 2 Machines Repaired . | . . . . Machines Sabotaged . | . . . . Overloaded Fab Kills . | . . . . Hacking | -11 -10 -9 -9 --------- Run | Jun Mat Mat Min Machines Accessed 4 | . 2 1 1 Terminals 4 | . 2 1 1 Fabricators . | . . . . Repair Stations . | . . . . Recycling Units . | . . . . Scanalyzers . | . . . . Garrison Access . | . . . . Total Hacks 11 | . 5 3 3 Successful 7 | . 4 2 1 Failed 4 | . 1 1 2 Catastrophic 1 | . . . 1 Database Lockouts . | . . . . Manual 3 | . . 2 1 Terminals 11 | . 5 3 3 Fabricators . | . . . . Repair Stations . | . . . . Recycling Units . | . . . . Scanalyzers . | . . . . Garrison Access . | . . . . Terminal Hacks 6 | . 4 1 1 Record 1 | . . . 1 Prototype ID Bank 1 | . . 1 . Locate Traps 2 | . 2 . . Hauler Manifests 1 | . 1 . . Registered Components 1 | . 1 . . Fabricator Hacks . | . . . . Repair Station Hacks . | . . . . Recycling Unit Hacks . | . . . . Scanalyzer . | . . . . Garrison Access Hacks . | . . . . Unauthorized Hacks 1 | . . 1 . Terminals 1 | . . 1 . Detonate 1 | . . 1 . Fabricators . | . . . . Repair Stations . | . . . . Recycling Units . | . . . . Scanalyzers . | . . . . Garrison Access . | . . . . Data Cores Recovered 1 | . . 1 . Used . | . . . . Hacking Detections 3 | . 1 1 1 Full Trace Events 1 | . . 1 . Feedback Events . | . . . . Feedback Blocked . | . . . . Robot Schematics Acquired . | . . . . Robots Built . | . . . . Authchips . | . . . . Time . | . . . . Total Robot Build Rating . | . . . . Part Schematics Acquired . | . . . . Parts Built . | . . . . Authchips . | . . . . Time . | . . . . Total Part Build Rating . | . . . . Parts Repaired . | . . . . Time . | . . . . Parts Recycled . | . . . . Recycled Matter . | . . . . Retrieved Matter . | . . . . Retrieved Components . | . . . . Parts Scanalyzed . | . . . . Part Schematics Acquired . | . . . . Parts Damaged . | . . . . Bothacking | -11 -10 -9 -9 ------------ Run | Jun Mat Mat Min Used RIF Installer . | . . . . Robots Hacked . | . . . . Non-combat . | . . . . Combat . | . . . . Robot Hacks Applied . | . . . . Relay Couplers Released . | . . . . Fabnet Peak Effective % . | . . . . Robots Rewired . | . . . . Allies Hacked . | . . . . Hacks Repelled . | . . . . Allies | -11 -10 -9 -9 -------- Run | Jun Mat Mat Min Total Allies . | . . . . Largest Group . | . . . . Highest-Rated Group . | . . . . Highest-Rated Ally . | . . . . Total Orders . | . . . . Ally Attacks . | . . . . Total Damage . | . . . . Kills . | . . . . Allies Corrupted . | . . . . Allies Melted . | . . . . Intel | -11 -10 -9 -9 ------- Run | Jun Mat Mat Min Robot Analysis Total . | . . . . Derelict Logs Recovered . | . . . . Drone Launches . | . . . . Drone Recoveries . | . . . . Exploration | -11 -10 -9 -9 ------------- Run | Jun Mat Mat Min Turns Passed 2349 | 343 310 1456 240 Spaces Moved 1203 | 223 210 662 108 Core 1 | 1 . . . Treads 177 | . . 69 108 Legs 494 | . . 494 . Wheels 531 | 222 210 99 . Hover . | . . . . Flight . | . . . . Fastest Speed 50 | 50 80 80 160 Average Speed 138 | 79 94 168 160 Slowest Speed 260 | 80 95 260 240 Overloaded Moves . | . . . . Propulsion Burnouts . | . . . . Robots Hopped . | . . . . Cave-ins Triggered . | . . . . Exploration Rate (%) 21 | 8 22 34 22 Regions Visited 3 Branch Regions 1 Pre-discovered Areas . | . . . . Known Exits Taken . | . . . . Unknown Exits Taken 3 | 1 1 1 . Scrap Searched . | . . . . Spaces Dug 6 | 2 4 . . Terrain Destroyed 145 | 2 4 70 69 Melee . | . . . . Projectile 11 | 2 4 2 3 AOE 134 | . . 68 66 Terrain Rammed . | . . . . Walls Destroyed . | . . . . Machines Disabled . | . . . . Actions | -11 -10 -9 -9 --------- Run | Jun Mat Mat Min Total 1542 | 296 276 832 138 Wait 73 | 11 32 30 . Move 1200 | 222 209 661 108 Hop . | . . . . Pick Up 31 | 10 4 17 . Fast Attach 11 | 7 . 4 . Attach 19 | . 3 15 1 Detach 1 | . 1 . . Swap 23 | 5 3 11 4 Drop 6 | 2 2 2 . Fire 175 | 39 22 89 25 Melee . | . . . . Ram . | . . . . Kick 3 | . . 3 . Crush . | . . . . Escape Stasis . | . . . . Rewire . | . . . . Trap . | . . . . Miscellaneous . | . . . . Route ------- -11/Junkyard -10/Materials -9/Materials -9/Mines (discovered 1 exit: [Mat]) History --------- Turn | Location | Event 68 | -11/Junkyard | Discovered new exit (range 15) 344 | -11/Junkyard | Entered Materials 378 | -10/Materials | Build established: Mutant 647 | -10/Materials | Discovered new exit (range 5) 654 | -10/Materials | Entered another Materials area 654 | -9/Materials | Evolved 2 slots: Propulsion x1, Utility x1 827 | -9/Materials | Lost 8 parts (1p3n1u3w) 962 | -9/Materials | Lost 3 parts (1n1u1w) 1160 | -9/Materials | Build established: Scavenger-Mutant 1711 | -9/Materials | Core integrity fell below 50% 1995 | -9/Materials | Lost 3 parts (2n1u) 2103 | -9/Materials | Discovered new exit (range 4) 2110 | -9/Materials | Entered Mines 2142 | -9/Mines | Met a Derelict bent on vengeance 2220 | -9/Mines | Discovered new exit (range 9) 2260 | -9/Mines | Assembled infested the area 2265 | -9/Mines | Assisted by a Guerilla fighting off Assembled 2309 | -9/Mines | Core integrity fell below 20% 2350 | -9/Mines | Destroyed by as-69875 with Assembled Blade Last Messages --------------- 02314_ as-02937 destroyed. 02315_ U-05 Engineer builds a Wall. 02318_ The unstable cave ceiling collapses. 02320_ U-05 Engineer builds a Wall. 02328_ The unstable cave ceiling collapses. 02329_ Extracted 50 matter. 02331_ The unstable cave ceiling collapses. 02336_ System corrupted: Matter fused (-9). 02336_ U-05 Engineer lays Concrete. 02338_ The unstable cave ceiling collapses. 02338_ Mni. Grenade Launcher destroyed. 02338_ Imp. Light Cannon destroyed. 02341_ Lgt. Treads destroyed. 02343_ U-05 Engineer lays Concrete. 02344_ U-05 Engineer builds a Wall. 02344_ Lgt. Treads destroyed. 02348_ The unstable cave ceiling collapses. 02348_ U-05 Engineer builds a Wall. 02349_ The unstable cave ceiling collapses. 02349_ as-02915 destroyed. Map ----- +----------------------------------------------------+ | ????#??#?## % ####??#?##?#?#?????????????? | | ?# ?#???## ##??##??##??#??????????????? | | ?????##?## ###??##?#????#??#??????????? | | ?# #?#?#### ###? ###???????????????????? | | #??###??### ##### ####?????#???????????? | | ???? ?### ##?## #?#??????????????????? | | ??#??# ### ### ##???????????????????? | | ????## #####? ???????????????? | | ???#?# ##?????????????????????? | | ??#??##### * ##??????#???????????????? | | #??????#### = ! ##?#?#???#???????????????? | | ##???##??#### = #???????#????????????????? | | ??###???##?### #?#??#??##?#?????????????? | | ??#???#####??## #???????#????????????????? | | ?#???####??#### #???##?????#?????????????? | | #???#?????#### #?#?###??#???????????????? | | ???##?#?#### ##???#?#?#????????????????? | | ?##????#### ####?????##?#??#????????????? | | ??#?????## #########??##????????????????? | | ?#???#??## " ## # ##?##?#??????????????? | | ???#?###?## %## ########????????????? | | ???#?#??## ### !%%=%=! #????????? | | ??#?##??## # # ########????????????? | | ??##?#### # #??????????????????? | | ##??##??## # #aa%###?##????????????????? | | ???##??## @a #???????????????????? | | ???#?#??## # ###?????????????????? | | #???????## # # # ###????#??????????????? | | ??##???## # ##?#???????????????????? | | #?#?#?#?#### ##??????#???????????????? | | ????????## # #????#??????????????????? | | ???????#?# ###?#????? ?????????????? | | ????##???#### ##?#????#????????????????? | | #????#?????## #????????????????????????? | | ????#?#?#??### u # ??##?#??? ??????????????? | | ?????????????### # ????#???????????????????? | | ?????#???????# # % ??? ?? ?????????????????? | | ??#??? ??####### # #?????????????????????? | | ?????????????#?# # ???????????????????????? | | ??#?#?#????? ?? # ???????????????????????? | | ?????##?#??? ? ## ???? ??????????????????? | | ???????????#???? #?????????????????????????? | | ???????????????????????????????????????????? | | ???????????????????????????????????????????? | | ???????????????????????????????????????????? | | ???????????????????????????????????????????? | | ???????????????????????????????????????????? | | ???????????????????????????????????????????? | | ???????????????????????????????????????????? | | ???????????????????????????????????????????? | +----------------------------------------------------+ Best States ------------- Heat Dissipation 38 Energy Generation 14 Energy Capacity 280 Matter Stores 300 Matter Capacity 300 Sight Range 16 Terrain Scan Range 16 Terrain Scan Density 85 Armor Coverage 150 Evasion (%) 45 Recoil Reduction 3 Item Schematics ----------------- None Robot Schematics ------------------ None Fabricated ------------ Nothing Alien Tech Used ----------------- None Achievements -------------- None Challenges ------------ None Game ------ Seed MiningWeldingCutter Manual? 0 Play Time 00:26:54 Cumulative 194.0 hours Start 2024.02.04 @ 17:08:31 End 2024.02.04 @ 17:33:16 Sessions 1 Manual Loads 0 Difficulty Rogue Special Mode None Game No. 145 Rogue 145 Adventurer 0 Explorer 0 Win Type - Total 0 Types 0/0/0/0/0/0/0/0/0 Lore% 44 Gallery% 58 Achievement% 44 Wizard Run 0 Options --------- ASCII 0 Keyboard 0 Movement Numpad Keybinds 0 Fullscreen 1 Font 16/Smallcaps Map View 112x50 Tactical HUD 1 Map Filters NONE Filters NONE Steam 1 RUN: 7d24f828-6787-4252-8dcb-334fd5d744f4